bitfinex/quotes_ETHUSD_20260129
["timestamp","ask_amount","ask_price","bid_price","bid_amount"]
[1769670482284,0.84553725,2956.7,2956.1,0.001]
[1769670483581,1.3659606,2956.8,2956.1,0.93519255]
[1769670483982,0.84552704,2956.8,2956.1,0.93519255]
[1769670485159,0.002,2956.9,2956.1,0.93519255]
[1769670488658,0.9789353,2956.9,2956.1,0.93519255]
[1769670489482,0.9789353,2956.9,2956.1,0.001]
[1769670490981,1.82244395,2956.8,2956.1,0.001]
[1769670491177,2.68128295,2956.8,2956.1,0.001]
[1769670494298,2.68128295,2956.8,2956.3,0.001]
[1769670494464,0.002,2956.6,2956.3,0.001]
[1769670505196,0.84524514,2957.8,2956.6,0.98209641]
[1769670505494,0.84524514,2957.8,2956.9,0.98209641]
[1769670505694,0.84524514,2957.8,2957.0,0.98209641]
[1769670507012,0.84716565,2958.0,2957.1,0.98209641]
[1769670508208,0.002,2957.6,2957.1,0.98209641]
[1769670509090,0.002,2957.6,2957.2,0.98209641]
[1769670510910,0.002,2957.6,2957.2,1.1648483]
[1769670511307,0.002,2958.0,2957.3,0.8453657]
[1769670511509,0.002,2958.0,2957.4,0.99474464]
[1769670513601,0.002,2958.0,2957.6,0.99474464]
[1769670517207,0.002,2958.0,2957.7,0.99474464]
[1769670517910,0.002,2958.2,2957.9,0.99474464]
[1769670519500,0.6505041,2958.5,2957.9,0.99474464]
[1769670520524,0.002,2958.0,2957.9,0.99474464]
[1769670520822,0.002,2958.2,2957.9,0.99474464]
[1769670523038,0.002,2958.2,2957.9,1.83993226]
[1769670523228,0.002,2958.2,2957.9,0.54059343]
[1769670523428,0.002,2958.2,2958.0,0.99474464]
[1769670529231,0.84699425,2958.6,2958.0,0.99474464]
[1769670531039,0.84699425,2958.6,2958.1,0.99474464]
[1769670531040,0.002,2958.6,2958.1,0.99474464]
[1769670531439,0.002,2958.6,2958.2,0.99474464]
[1769670531610,0.002,2958.6,2958.3,0.18398721]
[1769670532525,0.002,2958.6,2957.8,0.99574464]
[1769670532719,0.002,2958.6,2957.9,0.99474464]
[1769670533123,0.002,2958.4,2957.8,0.001]
[1769670533838,0.002,2958.4,2957.8,0.84622237]
[1769670534221,0.002,2958.4,2957.8,1.84096701]
[1769670534536,0.002,2958.4,2957.9,0.2024969]
[1769670536439,0.002,2958.4,2957.8,0.99574464]
[1769670536923,0.91539124,2958.4,2957.8,0.001]
[1769670539115,1.55307994,2958.3,2957.8,0.001]
[1769670542045,2.46647118,2958.3,2957.8,0.001]
[1769670542224,2.46647118,2958.3,2957.4,1.77898245]
[1769670542544,2.46647118,2958.3,2956.9,3.38189238]
[1769670542545,0.91339124,2958.0,2956.9,0.93366331]
[1769670542742,0.91339124,2958.0,2956.9,1.77913778]
[1769670543211,0.91339124,2958.0,2957.0,1.77911156]
[1769670543416,1.82274723,2958.0,2957.0,2.2952238]
[1769670543617,0.84519422,2957.9,2957.0,2.2952238]
[1769670544841,0.84519422,2957.9,2957.0,1.44977555]
[1769670545041,1.75858546,2957.9,2957.0,0.93366331]
[1769670545328,1.75858546,2957.9,2956.8,0.84549185]
[1769670545329,0.91339124,2957.8,2956.8,1.77915516]
[1769670545522,0.84525137,2957.7,2956.8,0.93366331]
[1769670545725,0.91339124,2957.6,2956.8,0.93366331]
[1769670546537,0.84525137,2957.7,2956.9,0.93366331]
[1769670546737,0.84525137,2957.7,2956.9,1.11158025]
[1769670547628,0.84525137,2957.7,2956.9,0.93366331]
[1769670547629,1.75864261,2957.7,2956.9,0.93366331]
[1769670548550,0.91339124,2957.6,2956.7,0.93366331]
[1769670549854,0.84525137,2957.7,2956.7,0.93366331]
[1769670551042,0.84525137,2957.7,2956.9,0.93366331]
[1769670551241,0.708,2957.6,2956.9,0.93366331]
[1769670551439,0.708,2957.6,2956.9,1.11158051]
[1769670551645,0.708,2958.1,2957.0,0.93366331]
[1769670553129,1.55316415,2958.1,2957.2,0.93366331]
[1769670555239,4.08844002,2958.2,2957.4,0.93366331]
[1769670556440,0.002,2957.9,2957.4,0.93366331]
[1769670556666,0.002,2957.9,2957.5,0.1779029]
[1769670557170,0.002,2957.9,2957.6,0.93366331]
[1769670557945,0.002,2957.9,2957.7,0.93366331]
[1769670559540,0.002,2957.9,2957.5,0.1779029]
[1769670559969,0.002,2957.9,2957.5,1.11156621]
[1769670560542,0.002,2957.9,2957.5,0.1779029]
[1769670561362,0.002,2957.9,2957.3,0.93366331]
[1769670563874,0.002,2957.9,2957.3,1.7790266]
[1769670564075,0.002,2957.9,2957.4,0.93366331]
[1769670566446,0.002,2957.9,2957.5,0.84530853]
[1769670566647,0.002,2957.9,2957.5,1.84051729]
[1769670566957,0.002,2957.9,2957.6,0.18405173]
[1769670568760,0.002,2957.9,2957.8,0.001]
[1769670571955,0.002,2957.9,2957.2,0.97826915]
[1769670572474,0.94369492,2957.9,2957.2,0.001]
[1769670573855,0.94169492,2957.7,2957.2,0.001]
[1769670576256,0.84526458,2957.7,2957.2,0.001]
[1769670578462,0.8452228,2957.8,2957.2,0.001]
[1769670580579,0.8452228,2957.8,2957.4,0.001]
[1769670580780,0.51697591,2957.7,2957.4,0.001]
[1769670582986,1.36223068,2957.7,2957.4,0.001]
[1769670585992,2.3039256,2957.7,2957.4,0.001]
[1769670586192,2.3039256,2957.7,2956.6,3.3822325]
[1769670586193,0.94169492,2957.6,2956.6,0.84556111]
[1769670586508,0.94169492,2957.6,2956.6,1.82283026]
[1769670586706,1.51017878,2957.6,2956.7,0.97726915]
[1769670587007,0.84530853,2957.5,2956.7,0.97726915]
[1769670587314,0.708,2957.4,2956.7,0.97726915]
[1769670587612,0.708,2957.4,2956.8,0.97726915]
[1769670590573,1.55334714,2957.4,2956.8,0.97726915]
[1769670592073,1.55334714,2957.4,2957.0,0.001]
[1769670592315,2.04680648,2957.4,2957.0,0.001]
[1769670594116,2.04680648,2957.4,2956.5,0.97726915]
[1769670594314,2.04680648,2957.4,2956.6,0.97726915]
[1769670595190,3.01716647,2957.4,2956.4,1.84356521]
[1769670595778,3.01716647,2957.4,2956.5,0.99796372]
[1769670597178,0.97035999,2957.3,2956.5,0.99796372]
[1769670599379,0.84539429,2957.2,2956.5,0.99796372]
[1769670599584,0.84539429,2957.2,2956.5,1.18242042]
[1769670599785,0.84539429,2957.2,2956.5,2.0280124]
[1769670599981,0.84539429,2957.2,2956.6,0.99796372]
[1769670600823,4.35133641,2957.8,2956.6,0.99796372]
[1769670601009,1.55325137,2957.7,2956.6,0.99796372]
[1769670601320,2.4820107,2957.7,2956.8,0.99796372]
[1769670602104,3.45237069,2957.7,2956.8,0.99796372]
[1769670604227,3.45237069,2957.7,2956.8,0.99896372]
[1769670604523,0.002,2957.2,2956.8,0.99896372]
[1769670608329,0.002,2957.2,2956.8,0.001]
[1769670609612,0.002,2957.2,2956.4,0.99796372]
[1769670609613,0.97235999,2957.2,2956.3,0.001]
[1769670609812,1.88595139,2957.1,2956.3,0.001]
[1769670610511,0.84545147,2957.0,2956.3,0.001]
[1769670610692,0.708,2956.9,2956.3,0.001]
[1769670611510,0.708,2956.9,2956.3,0.99896372]
[1769670612497,1.55348382,2956.9,2956.3,0.99896372]
[1769670613330,0.708,2956.9,2956.3,0.99896372]
[1769670613827,0.708,2956.9,2956.4,0.99796372]
[1769670614629,1.55348141,2956.9,2956.4,0.99796372]
[1769670616246,1.55348141,2956.9,2956.5,0.001]
[1769670617051,0.708,2957.0,2956.6,0.99796372]
[1769670617717,0.84544584,2957.1,2956.6,0.99796372]
[1769670619953,0.84739429,2957.2,2956.6,0.99796372]
[1769670620123,2.22710314,2957.2,2956.5,0.001]
[1769670624965,0.97035999,2957.1,2956.5,0.001]
[1769670626150,1.25674315,2957.2,2956.5,0.001]
[1769670627959,0.9005715,2957.1,2956.5,0.001]
[1769670628256,0.21573147,2957.0,2956.5,0.001]
[1769670629464,0.21573147,2957.0,2956.7,0.001]
[1769670629761,0.84548006,2956.9,2956.7,0.001]
[1769670637366,0.21773147,2957.0,2956.7,0.001]
[1769670637367,1.06319675,2957.0,2956.7,0.001]
[1769670639088,0.84746528,2957.0,2956.7,0.96821369]
[1769670639248,0.708,2956.9,2956.7,0.96821369]
[1769670642158,0.002,2956.8,2956.7,0.96821369]
[1769670644579,0.002,2956.8,2956.7,0.001]
[1769670647881,0.84746783,2957.0,2956.7,0.001]
[1769670653615,0.002,2957.0,2956.7,0.001]
[1769670654105,0.002,2957.2,2956.8,0.96721369]
[1769670655307,0.002,2957.0,2956.8,1.14858959]
[1769670660733,0.002,2957.0,2956.7,0.001]
[1769670664511,0.002,2957.0,2956.3,0.001]
[1769670664512,0.99093224,2957.0,2956.3,0.001]
[1769670665915,0.98893224,2956.8,2956.3,0.001]
[1769670666117,0.98893224,2956.6,2956.3,0.001]
[1769670666317,0.84553725,2956.7,2956.1,0.001]
[1769670666318,1.69693224,2956.5,2956.1,0.001]
[1769670668194,0.84562305,2956.4,2956.1,0.001]
[1769670669131,0.84562305,2956.4,2955.8,0.001]
[1769670669317,1.83455529,2956.4,2955.8,0.001]
[1769670669925,0.98893224,2956.3,2955.8,0.001]
[1769670670127,0.18345553,2956.2,2955.8,0.001]
[1769670671128,0.84570887,2956.1,2955.8,0.001]
[1769670678133,0.708,2956.0,2955.8,0.001]
[1769670679039,1.55374126,2956.0,2955.8,0.001]
[1769670682237,0.84574126,2956.0,2955.8,0.001]
[1769670682413,0.708,2955.9,2955.8,0.001]
[1769670683315,0.708,2956.0,2955.8,0.99831196]
[1769670683535,0.708,2956.1,2955.8,0.99831196]
[1769670684121,0.708,2956.1,2955.8,0.001]
[1769670685338,1.553712,2956.1,2955.8,0.001]
[1769670686939,0.708,2956.1,2955.8,0.001]
[1769670687152,0.84566864,2956.3,2955.8,0.001]
[1769670687363,0.708,2956.2,2955.8,0.001]
[1769670689543,0.84566864,2956.3,2955.8,0.001]
[1769670690246,1.55366864,2956.3,2956.0,0.001]
[1769670690759,0.708,2956.3,2956.0,0.001]
[1769670691143,0.002,2956.8,2956.0,0.96440415]
[1769670691322,0.002,2956.8,2956.1,0.96340415]
[1769670691523,0.002,2956.8,2956.2,1.14441685]
[1769670691839,0.002,2957.0,2956.3,0.96340415]
[1769670694932,0.002,2957.0,2956.4,0.96340415]
[1769670695430,0.99866298,2957.0,2956.2,0.1810127]
[1769670695660,0.99666298,2956.8,2956.0,0.001]
[1769670697748,0.84553725,2956.7,2956.0,0.001]
[1769670701869,0.84553725,2956.7,2956.2,0.001]
[1769670708464,0.708,2956.6,2956.2,0.96440415]
[1769670708668,0.002,2956.8,2956.2,0.96440415]
[1769670709573,0.002,2956.8,2956.2,1.81007985]
[1769670709784,0.002,2956.8,2956.3,0.18100798]
[1769670710169,0.002,2956.8,2956.3,1.14441213]
[1769670713906,0.002,2956.8,2956.4,0.001]
[1769670720086,0.98889304,2956.8,2956.4,0.001]
[1769670721609,0.84553725,2956.7,2956.4,0.001]
[1769670721804,2.42487892,2956.7,2956.4,0.001]
[1769670722912,0.98689304,2956.6,2956.4,0.001]
[1769670723112,0.98689304,2956.6,2956.0,0.001]
[1769670724414,0.98689304,2956.5,2956.0,0.001]
[1769670724716,0.84558565,2956.6,2956.0,0.001]
[1769670725388,0.84558565,2956.6,2956.4,0.001]
[1769670725585,0.43920526,2956.5,2956.4,0.001]
[1769670727210,1.28479971,2956.5,2956.4,0.001]
[1769670727413,1.83248749,2956.5,2956.0,0.001]
[1769670727587,0.98689304,2956.4,2956.0,0.001]
[1769670729418,1.83253802,2956.4,2956.0,0.001]
[1769670737409,1.83253802,2956.4,2956.2,0.001]
[1769670737599,2.427032,2956.4,2956.2,0.001]
[1769670738494,1.44013896,2956.4,2956.2,0.001]
[1769670738909,2.427032,2956.4,2955.8,0.001]
[1769670739107,0.98689304,2956.3,2955.8,0.001]
[1769670740833,0.84568026,2956.2,2955.8,0.001]
[1769670740995,0.58097308,2956.2,2955.8,0.001]
[1769670741195,0.59449398,2956.4,2955.8,0.001]
[1769670741625,0.002,2956.4,2955.8,0.001]
[1769670742929,0.002,2956.4,2956.0,0.96156244]
[1769670746029,0.002,2956.4,2956.1,0.84570887]
[1769670747235,0.002,2956.6,2956.2,0.91023442]
[1769670748040,0.002,2956.6,2956.3,0.84565165]
[1769670749838,0.002,2956.6,2956.3,1.35950557]
[1769670750939,0.002,2956.4,2956.3,1.35950557]
[1769670751147,0.002,2956.8,2956.3,1.35950557]
[1769670754721,0.002,2956.8,2956.3,2.29462923]
[1769670756942,0.002,2956.8,2956.3,1.35950557]
[1769670757133,0.002,2956.8,2956.4,0.47421587]
[1769670759465,0.002,2957.2,2956.7,0.93512366]
[1769670759951,0.002,2957.2,2956.5,0.93512366]
[1769670761847,0.002,2957.2,2956.6,0.84556585]
[1769670762932,0.002,2956.8,2956.6,0.84556585]
[1769670763939,0.00059041,2956.8,2956.6,0.84556585]
[1769670765155,0.00059041,2956.8,2956.7,0.51639529]
[1769670768653,0.002,2957.2,2956.7,2.2970562]
[1769670769324,0.002,2957.2,2956.7,1.36193254]
[1769670775758,0.002,2957.0,2956.7,1.36193254]
[1769670781939,0.002,2957.0,2956.6,3.38225902]
[1769670781940,0.97861858,2957.0,2956.6,0.8455457]
[1769670782263,0.97861858,2957.0,2956.5,0.84657316]
[1769670782640,0.97861858,2957.0,2956.5,0.001]
[1769670783153,0.97661858,2956.9,2956.5,0.001]
[1769670787162,0.97661858,2956.8,2956.7,0.001]
[1769670787361,1.15902887,2956.8,2956.7,0.001]
[1769670789071,1.15902887,2956.8,2956.5,0.001]
[1769670789274,0.97661858,2956.7,2956.5,0.001]
[1769670795888,0.89041029,2956.8,2956.5,0.001]
[1769670798907,0.89041029,2956.8,2956.7,0.001]
[1769670803091,0.708,2956.8,2956.7,0.001]
[1769670809069,0.708,2956.8,2956.5,0.001]
[1769670809299,1.55351174,2956.8,2956.5,0.001]
[1769670810403,0.708,2956.8,2956.5,0.001]
[1769670811108,1.55351063,2956.8,2956.5,0.001]
[1769670813177,1.55351063,2956.8,2956.0,4.30669413]
[1769670813178,0.92189924,2956.7,2956.0,0.84671741]
[1769670814900,1.76743714,2956.7,2956.0,0.001]
[1769670815105,0.92189924,2956.6,2956.0,0.001]
[1769670817394,3.06202986,2956.8,2956.0,0.001]
[1769670820309,1.22810223,2956.7,2956.0,0.001]
[1769670820516,0.92189924,2956.6,2956.0,0.001]
[1769670822097,1.15176019,2956.7,2956.0,0.001]
[1769670822312,1.15176019,2956.7,2956.2,0.001]
[1769670822508,0.30620299,2956.7,2956.2,0.001]
[1769670822712,0.002,2956.6,2956.2,0.001]
[1769670825114,0.24703362,2956.6,2956.2,0.001]
[1769670826806,0.24703362,2956.6,2955.8,0.001]
[1769670826807,0.92189924,2956.5,2955.8,0.001]
[1769670827007,0.92189924,2956.3,2955.8,0.001]
[1769670829118,1.7675795,2956.2,2955.8,0.001]
[1769670829303,0.51503006,2956.1,2955.8,0.001]
[1769670830507,0.84568026,2956.2,2955.8,0.001]
[1769670831017,0.84562305,2956.4,2955.8,0.99565302]
[1769670831403,3.3824808,2956.5,2955.8,0.99565302]
[1769670832620,4.30438004,2956.5,2955.8,0.001]
[1769670832918,0.92189924,2956.4,2955.8,0.001]
[1769670833223,0.430438,2956.3,2955.8,0.001]
[1769670834425,0.84568026,2956.2,2956.0,0.001]
[1769670834817,0.002,2956.1,2956.0,0.001]
[1769670840113,0.99309649,2956.1,2955.8,0.001]
[1769670840313,1.17497417,2956.0,2955.1,3.38395553]
[1769670840514,0.99109649,2956.0,2955.1,3.38395553]
[1769670840712,0.99109649,2956.0,2955.1,4.31160734]
[1769670841124,0.84575647,2956.0,2955.2,0.92765181]
[1769670843132,0.002,2956.1,2955.3,0.92765181]
[1769670845118,0.84573748,2956.0,2955.3,0.92765181]
[1769670845317,0.84573748,2956.0,2955.1,0.92765181]
[1769670845547,0.84573748,2956.0,2955.2,0.91169689]
[1769670845821,0.84573748,2956.0,2955.1,1.77364348]
[1769670846164,0.84573748,2956.0,2954.9,1.7736979]
[1769670846165,0.99109649,2955.9,2954.9,1.7736979]
[1769670846522,0.99109649,2955.9,2955.0,1.77366131]
[1769670847027,0.99109649,2955.9,2955.5,0.001]
[1769670847649,0.8457947,2955.8,2955.5,0.001]
[1769670849448,3.38301801,2956.0,2955.5,0.001]
[1769670849643,0.5221852,2955.9,2955.5,0.001]
[1769670849849,1.51328169,2955.9,2955.5,0.001]
[1769670852047,1.83689119,2955.8,2955.5,0.001]
[1769670854748,0.8457947,2955.8,2955.5,0.001]
[1769670861154,0.8477661,2955.9,2955.5,0.001]
[1769670862527,0.002,2955.9,2955.5,0.001]
[1769670868509,0.97140979,2955.9,2955.5,0.001]
[1769670870865,1.81719691,2955.9,2955.7,0.001]
[1769670874854,0.92522793,2955.8,2955.7,0.001]
[1769670875040,0.84778712,2955.9,2955.7,0.001]
[1769670875871,0.92722793,2955.9,2955.7,0.001]
[1769670880183,1.77301851,2955.9,2955.7,0.001]
[1769670881150,0.002,2956.1,2955.7,0.57416367]
[1769670881970,0.002,2956.1,2955.7,0.001]
[1769670883057,0.002,2956.1,2955.9,0.001]
[1769670890597,0.92722793,2956.1,2955.7,0.001]
[1769670890906,0.92522793,2955.9,2955.7,0.001]
[1769670893392,1.77100113,2955.9,2955.7,0.001]
[1769670894899,0.92722793,2955.9,2955.7,0.001]
[1769670895397,0.002,2955.9,2955.7,0.001]
[1769670900606,1.48297984,2955.9,2955.7,0.001]
[1769670903813,2.32877371,2955.9,2955.7,0.001]
[1769670904532,0.96156352,2955.8,2954.8,1.42122409]
[1769670904719,0.96156352,2955.8,2954.9,0.48056367]
[1769670904917,0.96156352,2955.8,2954.8,0.84706042]
[1769670905726,0.96156352,2955.8,2954.8,0.84707537]
[1769670906442,0.84582332,2955.7,2954.9,0.57416367]
[1769670906604,0.84582332,2955.7,2955.0,0.001]
[1769670907332,1.80738684,2955.7,2955.0,0.001]
[1769670907537,0.96156352,2955.6,2955.0,0.001]
[1769670908947,1.80744408,2955.5,2955.0,0.001]
[1769670911215,0.96156352,2955.5,2955.0,0.001]
[1769670912219,1.8074457,2955.5,2955.0,0.001]
[1769670913346,0.96156352,2955.5,2955.0,0.001]
[1769670914325,0.96156352,2955.4,2955.0,0.001]
[1769670921364,0.001,2955.6,2955.0,0.57516367]
[1769670921844,0.001,2955.6,2955.1,0.84599505]
[1769670922430,0.001,2955.6,2955.1,1.42015872]
[1769670926443,0.002,2955.9,2955.3,1.42010147]
[1769670926643,0.002,2955.9,2955.4,0.48038527]
[1769670928091,0.002,2956.1,2955.5,0.57316367]
[1769670928478,0.002,2956.1,2955.6,1.41701561]
[1769670931148,0.001,2955.7,2955.6,1.41701561]
[1769670931554,0.001,2955.7,2955.5,0.84586386]
[1769670931850,0.001,2955.7,2955.5,1.31685602]
[1769670933060,0.001,2955.7,2955.4,0.84588891]
[1769670933259,0.97606185,2955.7,2955.2,0.002]
[1769670933474,0.97606185,2955.7,2955.4,0.845908]
[1769670934252,0.97606185,2955.7,2955.2,3.38584852]
[1769670934495,0.97606185,2955.7,2955.3,0.84591794]
[1769670935061,0.97606185,2955.7,2955.2,0.002]
[1769670941608,0.001,2955.7,2955.2,0.002]
[1769670943281,0.97606185,2955.7,2955.2,0.002]
[1769670944136,0.97606185,2955.7,2955.4,0.001]
[1769670946003,0.97506185,2955.6,2955.2,0.002]
[1769670946210,0.97506185,2955.6,2955.0,0.001]
[1769670948931,0.84585234,2955.6,2955.0,0.001]
[1769670949138,0.97506185,2955.5,2955.0,0.001]
[1769670951035,0.97506185,2955.4,2955.0,0.001]
[1769670951535,1.15715667,2955.4,2955.0,0.001]
[1769670952126,0.97506185,2955.6,2955.0,0.001]
[1769670952326,0.001,2955.7,2955.0,0.001]
[1769670953719,0.97506185,2955.6,2955.0,0.001]
[1769670954551,0.97506185,2955.4,2955.0,0.001]
[1769670955049,0.97506185,2955.4,2954.8,0.001]
[1769670955353,0.84588056,2955.5,2954.8,0.001]
[1769670955354,0.91098742,2955.2,2954.8,0.001]
[1769670957155,0.84599505,2955.1,2954.8,0.001]
[1769670958229,0.91098742,2955.0,2953.8,0.002]
[1769670958978,0.91098742,2954.9,2953.8,0.002]
[1769670959282,0.91098742,2954.7,2953.8,0.002]
[1769670959486,0.91098742,2954.5,2953.8,0.002]
[1769670961573,0.91098742,2954.3,2953.8,0.002]
[1769670962269,0.8461955,2954.4,2953.8,0.002]
[1769670965975,1.75718292,2954.4,2953.8,0.002]
[1769670967861,1.75718292,2954.4,2954.0,0.001]
[1769670968065,0.51418557,2954.3,2954.0,0.001]
[1769670970277,0.91098742,2954.8,2954.0,0.001]
[1769670972171,0.84610958,2954.7,2954.0,0.001]
[1769670972496,1.757097,2954.7,2954.0,0.001]
[1769670973253,0.91098742,2954.6,2954.0,0.001]
[1769670975507,0.84614552,2954.6,2954.0,0.001]
[1769670975674,0.91098742,2954.5,2954.0,0.001]
[1769670977795,0.002,2955.4,2954.3,0.99808858]
[1769670977995,0.002,2955.3,2954.6,0.99808858]
[1769670979098,1.75893765,2955.3,2954.3,0.99808858]
[1769670979300,1.75893765,2955.3,2954.4,0.91927457]
[1769670979801,0.91298742,2955.3,2954.5,0.84616686]
[1769670980019,0.002,2955.3,2954.5,1.84425544]
[1769670980791,0.002,2955.3,2954.6,0.99808858]
[1769670981094,0.002,2955.3,2954.5,0.84616686]
[1769670981095,0.002,2955.3,2954.7,1.18251412]
[1769670981998,0.002,2955.3,2954.8,1.84416953]
[1769670984519,0.002,2955.4,2954.9,0.99808858]
[1769670984697,0.711,2955.5,2954.9,0.99808858]
[1769670984903,0.002,2955.6,2955.1,9.19274574]
[1769670986008,0.002,2955.6,2955.2,0.92860832]
[1769670987296,0.002,2955.6,2955.2,1.77455868]
[1769670990410,0.002,2955.6,2955.2,0.84595036]
[1769670990915,0.002,2955.6,2955.0,1.97802283]
[1769670991110,0.96787924,2955.6,2955.1,0.53622279]
[1769670991307,0.96787924,2955.6,2955.0,1.00388267]
[1769670991308,0.96587924,2955.5,2955.0,1.00388267]
[1769670991717,0.96587924,2955.5,2954.9,0.84603242]
[1769670993331,0.001,2955.3,2954.8,3.384315]
[1769670994412,0.001,2955.3,2954.8,0.84608095]
[1769670998854,0.96687924,2955.3,2954.7,1.03252044]
[1769671005625,0.001,2955.3,2954.7,1.03252044]
[1769671005819,0.001,2955.3,2954.8,0.44170686]
[1769671006025,0.001,2955.3,2954.9,0.002]
[1769671006240,0.708,2955.2,2954.9,0.002]
[1769671006447,0.708,2955.2,2954.9,0.84805231]
[1769671008048,0.708,2955.2,2954.9,0.002]
[1769671008552,0.001,2955.3,2954.9,0.002]
[1769671008724,0.708,2955.2,2954.9,0.002]
[1769671011261,0.001,2955.3,2954.9,0.002]
[1769671011553,0.708,2955.2,2954.9,0.002]
[1769671017654,0.97598931,2955.1,2954.7,0.002]
[1769671018062,0.97598931,2955.0,2954.7,0.002]
[1769671018554,1.82201478,2955.0,2954.7,0.002]
[1769671019062,0.97598931,2955.0,2954.7,0.002]
[1769671019741,0.97598931,2955.0,2954.9,0.002]
[1769671020563,0.97598931,2954.9,2954.7,0.002]
[1769671021156,1.21733883,2954.9,2954.7,0.002]
[1769671021655,1.21733883,2954.9,2954.0,0.84728648]
[1769671022431,1.21733883,2954.9,2954.1,0.84627834]
[1769671022642,1.82207026,2954.8,2954.0,0.001]
[1769671023059,0.84608095,2954.8,2954.0,0.001]
[1769671023361,0.97598931,2954.7,2954.0,0.001]
[1769671023757,0.4471594,2954.8,2954.0,0.95042736]
[1769671023963,0.8469496,2955.3,2954.7,8.1953599]
[1769671024137,0.709,2955.1,2954.7,8.1953599]
[1769671025232,0.709,2955.1,2954.7,9.04146817]
[1769671027239,0.709,2955.1,2954.7,0.84610827]
[1769671027766,0.97598931,2955.0,2954.5,0.84615235]
[1769671027935,0.97598931,2955.0,2953.6,1.01517174]
[1769671027936,0.97598931,2954.8,2953.7,0.84637501]
[1769671028135,8.1953599,2954.9,2953.6,4.3350779]
[1769671028136,0.97598931,2954.6,2953.6,0.94942736]
[1769671028334,0.97598931,2954.6,2953.7,0.84639251]
[1769671028633,1.82215617,2954.5,2953.6,1.79583138]
[1769671028829,0.97598931,2954.4,2953.6,0.84640402]
[1769671031856,0.97598931,2954.4,2954.2,0.002]
[1769671032057,4.30160435,2954.7,2954.2,0.002]
[1769671032058,1.89312423,2954.7,2954.2,0.002]
[1769671032263,0.709,2954.6,2954.2,0.002]
[1769671032460,0.709,2954.6,2954.2,0.91677873]
[1769671033840,0.709,2954.6,2954.2,1.76302774]
[1769671035868,0.71,2954.9,2954.4,0.8461955]
[1769671036047,0.709,2955.0,2954.4,0.8461955]
[1769671036366,0.709,2955.0,2954.5,1.33757648]
[1769671036663,0.709,2955.1,2954.5,1.33757648]
[1769671037441,0.709,2955.2,2954.5,1.33757648]
[1769671038067,0.709,2955.2,2954.6,0.84613822]
[1769671040846,0.97598931,2955.1,2954.5,1.33757648]
[1769671041080,0.97598931,2955.1,2954.4,0.84617716]
[1769671041670,0.001,2955.3,2954.5,0.84616425]
[1769671041671,0.97698931,2955.3,2954.5,0.84616425]
[1769671041846,0.709,2955.0,2954.5,1.79559161]
[1769671042045,0.709,2955.0,2954.6,0.51803657]
[1769671044076,0.71,2955.0,2954.6,1.36414863]
[1769671044750,0.97598931,2954.9,2954.6,0.51803657]
[1769671045070,0.97598931,2954.9,2954.5,0.84614808]
[1769671045265,0.001,2955.3,2954.5,0.98792379]
[1769671045454,0.002,2955.6,2954.9,0.98792379]
[1769671045975,0.002,2955.6,2955.0,1.83394747]
[1769671052380,0.709,2955.5,2955.0,1.83394747]
[1769671052578,0.709,2955.5,2955.2,0.84596643]
[1769671053682,0.9176461,2955.4,2955.1,0.84597442]
[1769671053982,0.9176461,2955.4,2955.1,0.84599238]
[1769671054395,0.708,2955.3,2955.1,0.84599238]
[1769671054558,0.708,2955.3,2954.7,0.84610958]
[1769671054759,0.708,2955.3,2954.8,0.5205637]
[1769671055570,0.708,2955.3,2954.8,0.5225637]
[1769671056784,1.6256461,2955.3,2954.9,0.84605231]
[1769671056984,0.708,2955.3,2954.9,0.84605231]
[1769671059758,0.9176461,2955.2,2954.8,0.84805931]
[1769671060784,0.708,2955.3,2954.8,0.84805931]
[1769671062063,0.708,2955.3,2954.8,0.002]
[1769671063477,0.708,2955.2,2954.8,0.002]
[1769671067579,0.708,2955.2,2955.0,0.002]
[1769671071988,0.9186461,2955.4,2955.0,0.002]
[1769671072194,0.708,2955.1,2955.0,0.002]
[1769671079216,0.708,2955.2,2955.0,0.002]
[1769671085453,0.001,2955.4,2955.0,0.002]
[1769671085649,0.708,2955.3,2955.0,0.002]
[1769671092052,0.002,2955.1,2955.0,0.002]
[1769671092652,0.001,2955.4,2955.0,0.002]
[1769671092861,0.001,2955.4,2955.0,0.95929178]
[1769671093158,0.001,2955.4,2955.0,1.80531385]
[1769671093330,0.001,2955.4,2955.0,1.36717747]
[1769671096630,0.001,2955.4,2955.0,0.5211554]
[1769671096830,0.001,2955.4,2955.0,0.002]
[1769671097135,0.001,2955.4,2955.0,0.84801719]
[1769671099370,0.001,2955.4,2955.0,0.002]
[1769671104244,0.002,2955.2,2955.0,0.002]
[1769671117978,0.001,2955.4,2955.0,0.002]
[1769671118279,0.002,2955.6,2955.0,9.28440158]
[1769671118683,0.002,2955.6,2955.1,0.91063868]
[1769671119085,0.99237792,2955.6,2955.0,0.1780691]
[1769671119291,0.99237792,2955.6,2955.0,0.002]
[1769671126589,0.002,2955.6,2955.0,9.10833248]
[1769671127690,0.002,2955.6,2955.0,0.91263868]
[1769671128283,0.002,2955.6,2955.2,0.002]
[1769671128593,0.001,2955.4,2955.2,0.002]
[1769671129482,0.001,2955.7,2955.3,0.91063868]
[1769671130693,0.001,2955.7,2955.4,0.84590918]
[1769671134781,0.001,2955.7,2955.3,3.38366516]
[1769671140070,0.001,2955.7,2955.5,0.001]
[1769671142007,0.002,2956.1,2955.5,0.001]
[1769671142208,0.002,2956.1,2955.6,0.8193818]
[1769671142609,0.002,2956.3,2955.7,0.94291806]